fUSD/lending_fUSD_20240227
["ID","MTS","AMOUNT","RATE_DAILY","PERIOD"]
[315458410,1709047844109,-500.0,0.00023999,2]
[315458412,1709047844119,-500.0,0.00023999,2]
[315458414,1709047844128,-500.0,0.00023999,2]
[315458416,1709047844137,-500.0,0.00023999,2]
[315458418,1709047844147,-500.0,0.00023999,2]
[315458420,1709047844157,-500.0,0.00023999,2]
[315458422,1709047844166,-423.03731152,0.00023999,2]
[315458424,1709047844175,-500.0,0.00023999,2]
[315458426,1709047844185,-500.0,0.00023999,2]
[315458428,1709047844194,-500.0,0.00023999,2]
[315458429,1709047844203,-500.0,0.00023999,2]
[315458431,1709047844211,-500.0,0.00023999,2]
[315458433,1709047844220,-500.0,0.00023999,2]
[315458435,1709047844230,-500.0,0.00023999,2]
[315458437,1709047844240,-500.0,0.00023999,2]
[315458439,1709047844249,-500.0,0.00023999,2]
[315458441,1709047844258,-354.73630163,0.00023999,2]
[315458443,1709047844267,-1192.56,0.00023999,2]
[315458445,1709047844277,-1192.56,0.00023999,2]
[315458447,1709047844286,-1192.56,0.00023999,2]
[315458449,1709047844295,-1192.56,0.00023999,2]
[315458451,1709047844304,-1192.56,0.00023999,2]
[315458453,1709047844313,-1192.56,0.00023999,2]
[315458455,1709047844322,-1192.56,0.00023999,2]
[315458457,1709047844331,-1192.56,0.00023999,2]
[315458459,1709047844341,-1192.56,0.00023999,2]
[315458461,1709047844350,-1192.56,0.00023999,2]
[315458463,1709047844359,-1192.56,0.00023999,2]
[315458465,1709047844368,-1192.56,0.00023999,2]
[315458467,1709047844378,-1192.56,0.00023999,2]
[315458469,1709047844388,-1192.56,0.00023999,2]
[315458471,1709047844397,-1192.56,0.00023999,2]
[315458473,1709047844410,-1192.56,0.00023999,2]
[315458475,1709047844419,-1192.56,0.00023999,2]
[315458477,1709047844428,-1192.60999999,0.00023999,2]
[315458479,1709047844437,-1970.42,0.00023999,2]
[315458481,1709047844448,-1970.42,0.00023999,2]
[315458483,1709047844456,-1970.42,0.00023999,2]
[315458485,1709047844466,-1970.42,0.00023999,2]
[315458487,1709047844475,-1970.42,0.00023999,2]
[315458490,1709047844488,-1970.42,0.00023999,2]
[315458492,1709047844498,-1970.42,0.00023999,2]
[315458493,1709047844507,-1970.42,0.00023999,2]
[315458495,1709047844516,-1970.42,0.00023999,2]
[315458497,1709047844525,-1970.42,0.00023999,2]
[315458499,1709047844533,-1970.42,0.00023999,2]
[315458501,1709047844542,-1970.42,0.00023999,2]
[315458503,1709047844551,-1970.42,0.00023999,2]
[315458505,1709047844560,-1970.42,0.00023999,2]
[315458507,1709047844569,-1970.42,0.00023999,2]
[315458509,1709047844578,-1970.42,0.00023999,2]
[315458511,1709047844587,-1970.42,0.00023999,2]
[315458513,1709047844596,-1970.5559001,0.00023999,2]
[315458515,1709047844605,-500.0,0.00023999,2]
[315458517,1709047844614,-500.0,0.00023999,2]
[315458519,1709047844623,-500.0,0.00023999,2]
[315458521,1709047844632,-500.0,0.00023999,2]
[315458523,1709047844641,-500.0,0.00023999,2]
[315458525,1709047844650,-500.0,0.00023999,2]
[315458527,1709047844660,-500.0,0.00023999,2]
[315458529,1709047844669,-500.0,0.00023999,2]
[315458531,1709047844678,-500.0,0.00023999,2]
[315458532,1709047844687,-17.12418782,0.00023999,2]
[315458533,1709047844700,-482.87581218,0.00023999,2]
[315458534,1709047844709,-482.9,0.00023999,2]
[315458535,1709047844718,-314.16015344,0.00024,2]
[315458536,1709047844727,-14957.40815306,0.00024,30]
[315458537,1709047844736,-1358.781,0.00024,3]
[315458538,1709047844746,-1101421.96237394,0.00024,30]
[315458539,1709047844757,-567.738,0.00024,30]
[315458540,1709047844769,-832.12588318,0.00024,30]
[315458542,1709047844782,-3756.39517192,0.00024,30]
[315458746,1709047846366,-351.922,0.00023648,2]
[315458748,1709047846375,-1336.08687508,0.00023738,2]
[315458750,1709047846385,-258.43377631,0.00023994,2]
[315458751,1709047846394,-9411.37934861,0.00024,30]
[315458752,1709047846427,-852.77851002,0.00024,30]
[315458754,1709047846648,-12799.051449,0.00024,30]
[315458755,1709047846662,-17122.8117559,0.00024,30]
[315458756,1709047846673,-285.425,0.00024,30]
[315458792,1709048035987,929.54576657,0.000164,2]
[315458793,1709048036013,740.45423343,0.000164,2]
[315458794,1709048048661,-685.65,0.00020098,2]
[315458795,1709048048681,-258.43377631,0.00021529,2]
[315458796,1709048048700,-285.85,0.0002153,2]
[315458797,1709048048721,-232.13612053,0.0002153,2]
[315458798,1709048048741,-5311.24263685,0.00021999,4]
[315458799,1709048048760,-1750.0,0.00022,3]
[315458800,1709048048785,-321.76734832,0.00022104,3]
[315458801,1709048048805,-685.65,0.00022361,2]
[315458802,1709048048824,-1046.6257,0.00022685,2]
[315458803,1709048048845,-155.65,0.0002274,2]
[315458804,1709048048864,-799.7,0.00022785,2]
[315458805,1709048048884,-160.45,0.00022829,2]
[315458806,1709048048903,-150.0,0.00022886,2]
[315458807,1709048048922,-5376.84441799,0.00022887,2]
[315458808,1709048096643,300.0,0.0002143,2]
[315458809,1709048121318,404.98010368,0.00020787,2]
[315458810,1709048135352,499295.01989632,0.0002143,2]
[315458819,1709049035039,-258.43377631,0.00019267,2]
[315458820,1709049035049,-687.6,0.00019268,2]
[315458821,1709049035061,-172.0,0.00019599,2]
[315458822,1709049035072,-3527.37212122,0.000199,2]
[315458823,1709049035085,-724.5271639,0.000199,2]
[315458824,1709049035125,-2617.82401488,0.000199,2]
[315458825,1709049035135,-150.445876,0.0002,2]
[315458826,1709049035145,-1604.35161742,0.0002,3]
[315458827,1709049035166,-564.46,0.0002,3]
[315458828,1709049035183,-1599.87764,0.0002,3]
[315458829,1709049035196,-694.55279653,0.0002,3]
[315458830,1709049035209,-15054.14096556,0.0002,3]
[315458831,1709049035219,-205.0,0.00020076,2]
[315458832,1709049035229,-204.0,0.00020076,2]
[315458833,1709049035239,-209.93304808,0.00020787,2]
[315458834,1709049035249,-250.0,0.00020992,2]
[315458835,1709049035259,-23900.0,0.00021003,2]
[315458836,1709049035270,-221.34,0.00021046,2]
[315458837,1709049035279,-250.0,0.00021227,2]
[315458838,1709049035290,-264.0,0.00021237,2]
[315458839,1709049035300,-153.0,0.00021237,2]
[315458840,1709049035310,-171.79,0.00021262,2]
[315458841,1709049035320,-300.0,0.00021301,2]
[315458842,1709049035331,-2000.0,0.00021303,2]
[315458843,1709049035341,-3113.3646,0.0002133,2]
[315458844,1709049035351,-155.00120799,0.00021429,2]
[315458845,1709049035362,-12587.24165081,0.0002143,2]
[315458846,1709049035379,-552441.69258979,0.0002143,2]
[315458847,1709049035389,-153.40303603,0.00021432,2]
[315458848,1709049035398,-687.6,0.00021532,2]
[315458849,1709049035408,-596.7691381,0.00021812,2]
[315458850,1709049035418,-314.47,0.00021911,2]
[315458851,1709049035431,-158.04,0.00021938,2]
[315458852,1709049035440,-155.22596401,0.00022,2]
[315458853,1709049035450,-153.40303603,0.00022049,2]
[315458855,1709049035459,-202.68707103,0.00022104,3]
[315458857,1709049035469,-2385.8387388,0.00022104,3]
[315458858,1709049035480,-800.0,0.00022107,2]
[315458859,1709049035491,-150.99,0.00022178,2]
[315458860,1709049035500,-200.0,0.00022262,2]
[315458861,1709049035510,-205.0,0.00022294,5]
[315458862,1709049035519,-264.0,0.00022333,2]
[315458863,1709049035529,-153.0,0.00022333,2]
[315458864,1709049035539,-153.40303603,0.00022666,2]
[315458865,1709049035549,-166.23,0.00022683,2]
[315458866,1709049035559,-500.0,0.00022739,2]
[315458867,1709049035569,-500.0,0.00022739,2]
[315458868,1709049035580,-559.93329594,0.00022739,2]
[315458869,1709049035590,-563.29814645,0.00022739,2]
[315458870,1709049035600,-645.74298986,0.00022739,2]
[315458871,1709049035610,-258.08,0.00022739,2]
[315458872,1709049035620,-500.0,0.00022739,2]
[315458873,1709049035630,-500.0,0.00022739,2]
[315458874,1709049035639,-500.0,0.00022739,2]
[315458875,1709049035649,-500.0,0.00022739,2]
[315458876,1709049035658,-500.0,0.00022739,2]
[315458877,1709049035668,-500.0,0.00022739,2]
[315458878,1709049035683,-500.0,0.00022739,2]
[315458879,1709049035693,-263.56,0.00022739,2]
[315458880,1709049035703,-500.0,0.00022739,2]
[315458881,1709049035713,-500.0,0.00022739,2]
[315458882,1709049035723,-500.0,0.00022739,2]
[315458883,1709049035733,-500.0,0.00022739,2]
[315458884,1709049035743,-300.53,0.00022739,2]
[315458885,1709049035756,-608.82,0.00022739,2]
[315458886,1709049035766,-361.71,0.00022739,2]
[315458887,1709049035776,-339.12478902,0.00022739,2]
[315458888,1709049035786,-301.7,0.00022739,2]
[315458889,1709049035801,-609.97,0.00022739,2]
[315458890,1709049035811,-451.02680937,0.00022739,2]
[315458891,1709049035822,-608.44,0.00022739,2]
[315458892,1709049035832,-500.0,0.00022739,2]
[315458893,1709049035842,-2345.32,0.00022739,2]
[315458894,1709049035851,-2345.32,0.00022739,2]
[315458895,1709049035861,-500.0,0.00022739,2]
[315458896,1709049035871,-500.0,0.00022739,2]
[315458897,1709049035881,-500.0,0.00022739,2]
[315458898,1709049035891,-582.2,0.00022739,2]
[315458899,1709049035900,-504.8,0.00022739,2]
[315458900,1709049035910,-582.2,0.00022739,2]
[315458901,1709049035923,-529.9,0.00022739,2]
[315458902,1709049035933,-500.0,0.00022739,2]
[315458903,1709049035942,-500.0,0.00022739,2]
[315458904,1709049035952,-500.0,0.00022739,2]
[315458905,1709049035962,-500.0,0.00022739,2]
[315458906,1709049035972,-500.0,0.00022739,2]
[315458907,1709049035981,-500.0,0.00022739,2]
[315458908,1709049035991,-500.0,0.00022739,2]
[315458909,1709049036001,-500.0,0.00022739,2]
[315458910,1709049036010,-500.0,0.00022739,2]
[315458911,1709049036019,-500.0,0.00022739,2]
[315458912,1709049036029,-500.0,0.00022739,2]
[315458913,1709049036038,-500.0,0.00022739,2]
[315458914,1709049036048,-500.0,0.00022739,2]
[315458915,1709049036057,-500.0,0.00022739,2]
[315458916,1709049036067,-500.0,0.00022739,2]
[315458917,1709049036077,-500.0,0.00022739,2]
[315458918,1709049036087,-202.84813669,0.00022739,2]
[315458919,1709049036096,-500.0,0.00022739,2]
[315458920,1709049036106,-500.0,0.00022739,2]
[315458921,1709049036116,-351.84,0.00022739,2]
[315458922,1709049036125,-500.0,0.00022739,2]
[315458923,1709049036136,-500.0,0.00022739,2]
[315458924,1709049036146,-500.0,0.00022739,2]
[315458925,1709049036156,-500.0,0.00022739,2]
[315458926,1709049036166,-500.0,0.00022739,2]
[315458927,1709049036179,-500.0,0.00022739,2]
[315458928,1709049036189,-500.0,0.00022739,2]
[315458929,1709049036199,-500.0,0.00022739,2]
[315458930,1709049036209,-500.0,0.00022739,2]
[315458931,1709049036219,-500.0,0.00022739,2]
[315458932,1709049036229,-500.0,0.00022739,2]
[315458933,1709049036239,-500.0,0.00022739,2]
[315458934,1709049036248,-500.0,0.00022739,2]
[315458935,1709049036258,-500.0,0.00022739,2]
[315458936,1709049036267,-582.69254803,0.00022739,2]
[315458937,1709049036277,-500.0,0.00022739,2]
[315458938,1709049036287,-520.78780125,0.00022739,2]
[315458939,1709049036296,-500.0,0.00022739,2]
[315458940,1709049036306,-202.75,0.00022739,2]
[315458941,1709049036315,-500.0,0.00022739,2]
[315458942,1709049036325,-500.0,0.00022739,2]
[315458943,1709049036335,-513.85452082,0.00022739,2]
[315458944,1709049036344,-500.0,0.00022739,2]
[315458945,1709049036354,-500.0,0.00022739,2]
[315458946,1709049036363,-500.0,0.00022739,2]
[315458947,1709049036373,-500.0,0.00022739,2]
[315458948,1709049036383,-500.0,0.00022739,2]
[315458949,1709049036393,-444.54271378,0.00022739,2]
[315458950,1709049036403,-518.58,0.00022739,2]
[315458951,1709049036412,-500.0,0.00022739,2]
[315458952,1709049036424,-500.0,0.00022739,2]
[315458953,1709049036433,-639.38,0.00022739,2]
[315458954,1709049036443,-500.0,0.00022739,2]
[315458955,1709049036452,-500.0,0.00022739,2]
[315458956,1709049036462,-500.0,0.00022739,2]
[315458957,1709049036471,-500.0,0.00022739,2]
[315458958,1709049036481,-500.0,0.00022739,2]
[315458959,1709049036490,-430.70154939,0.00022739,2]
[315458960,1709049036499,-155.65,0.0002274,2]
[315458961,1709049036508,-5998.0,0.000228,2]
[315458962,1709049036518,-2785.16163178,0.000228,2]
[315458963,1709049036527,-268.91618201,0.00022887,2]
[315458964,1709049036536,-63831.70636723,0.0002298,2]
[315458965,1709049036546,-500.0,0.00022986,2]
[315458966,1709049036555,-296.24,0.00022986,2]
[315458967,1709049036565,-500.0,0.00022986,2]
[315458968,1709049036574,-500.0,0.00022986,2]
[315458969,1709049036583,-500.0,0.00022986,2]
[315458970,1709049036593,-500.0,0.00022986,2]
[315458971,1709049036602,-11291.07115854,0.00022987,2]
[315458972,1709049036612,-6240.44276334,0.00022987,2]
[315458973,1709049036621,-16598.60660298,0.00022987,2]
[315458974,1709049036630,-630.31619451,0.00023,2]
[315458975,1709049036641,-978.0,0.00023,6]
[315458976,1709049036650,-160.45,0.00023019,2]
[315458977,1709049036659,-160.45,0.00023209,2]
[315458978,1709049036668,-153.40303603,0.00023283,2]
[315458979,1709049036680,-171.79,0.00023317,2]
[315458980,1709049036689,-1324.0,0.00023329,2]
[315458981,1709049036698,-160.45,0.00023399,2]
[315458982,1709049036708,-264.0,0.00023429,2]
[315458983,1709049036717,-153.0,0.00023429,2]
[315458984,1709049036726,-500.0,0.00023556,2]
[315458985,1709049036735,-500.0,0.00023556,2]
[315458986,1709049036745,-500.0,0.00023556,2]
[315458987,1709049036756,-483.8,0.00023556,2]
[315458988,1709049036765,-524.42,0.00023556,2]
[315458989,1709049036774,-160.45,0.0002359,2]
[315458990,1709049036784,-500.0,0.00023647,2]
[315458991,1709049036795,-582.2,0.00023647,2]
[315458992,1709049036803,-500.0,0.00023647,2]
[315458993,1709049036813,-2697.0,0.00023649,2]
[315458994,1709049036822,-192.415,0.00023649,2]
[315458995,1709049036832,-306.0,0.00023649,2]
[315458996,1709049036842,-150.0,0.00023649,2]
[315458997,1709049036851,-8190.0,0.00023649,2]
[315458998,1709049036861,-9839.845,0.00023649,2]
[315458999,1709049036871,-150.0,0.00023649,2]
[315459000,1709049036880,-1040.0,0.00023649,2]
[315459001,1709049036890,-200.0,0.00023649,2]
[315459002,1709049036900,-299.252,0.00023649,2]
[315459003,1709049036910,-249.526,0.00023649,2]
[315459004,1709049036920,-153.356,0.00023649,2]
[315459005,1709049036932,-1263.47473616,0.00023655,4]
[315459006,1709049036941,-2345.32,0.00023656,2]
[315459007,1709049036950,-159117.9824,0.00023656,2]
[315459008,1709049036960,-855.76939078,0.00023698,2]
[315459009,1709049036969,-205.9136,0.00023698,2]
[315459010,1709049036979,-6531.908,0.00023698,2]
[315459011,1709049036988,-150.0,0.0002371,2]
[315459012,1709049036999,-855.76939072,0.00023716,2]
[315459013,1709049037008,-150.0,0.00023717,2]
[315459014,1709049037017,-150.0,0.00023728,2]
[315459015,1709049037027,-855.76939072,0.00023735,2]
[315459016,1709049037037,-150.0,0.00023741,2]
[315459017,1709049037047,-150.0,0.00023743,2]
[315459018,1709049037057,-150.0,0.00023746,2]
[315459019,1709049037067,-150.0,0.00023748,2]
[315459020,1709049037077,-855.76939072,0.00023753,2]
[315459021,1709049037087,-347.23,0.00023754,2]
[315459022,1709049037096,-500.0,0.00023754,2]
[315459023,1709049037106,-476.33292032,0.00023754,2]
[315459024,1709049037115,-500.0,0.00023754,2]
[315459025,1709049037125,-500.0,0.00023754,2]
[315459026,1709049037135,-15225.21661691,0.00023755,2]
[315459027,1709049037144,-150.0,0.00023756,2]
[315459028,1709049037154,-153.4613199,0.00023757,2]
[315459029,1709049037163,-150.0,0.00023759,2]
[315459030,1709049037174,-500.0,0.00023759,2]
[315459031,1709049037184,-152.9106692,0.0002376,2]
[315459032,1709049037194,-6894.05344456,0.0002376,2]
[315459033,1709049037203,-150.0,0.00023762,2]
[315459034,1709049037213,-300.0,0.00023763,2]
[315459035,1709049037223,-150.0,0.0002377,2]
[315459036,1709049037233,-150.0,0.0002377,2]
[315459037,1709049037243,-855.76939072,0.00023771,2]
[315459038,1709049037252,-150.0,0.00023773,2]
[315459039,1709049037262,-150.0,0.00023776,2]
[315459040,1709049037271,-160.45,0.0002378,2]
[315459041,1709049037281,-1619.87527485,0.00023781,2]
[315459043,1709049037290,-23065.19730867,0.0002379,4]
[315459046,1709049037353,-801.90748966,0.0002379,4]
[315459047,1709049037400,-377.685,0.0002379,4]
[315459051,1709049037591,-500.0,0.00022739,2]
[315459052,1709049037600,-500.0,0.00022739,2]
[315459053,1709049037610,-201.05681389,0.00022739,2]
[315459054,1709049037622,-298.94318611,0.00022739,2]
[315459055,1709049037631,-500.0,0.00022739,2]
[315459056,1709049037640,-316.32,0.00022986,2]
[315459057,1709049037650,-153.877,0.00023649,2]
[315459058,1709049037659,-9399.42644958,0.0002379,4]
[315459059,1709049037689,-697.27166958,0.0002379,4]
[315459060,1709049037701,-57149.00000002,0.0002379,4]
[315459061,1709049037713,-847.20729397,0.0002379,4]
[315459062,1709049037755,-1205.1880747,0.0002379,4]
[315459063,1709049037767,-404.79845809,0.0002379,4]
[315459064,1709049037777,-580.36902194,0.0002379,2]
[315459072,1709049041045,-467.35828416,0.0002,3]
[315459073,1709049041055,-500.0,0.00022739,2]
[315459074,1709049041064,-500.0,0.00022739,2]
[315459075,1709049041078,-500.0,0.00022739,2]
[315459076,1709049041089,-500.0,0.00022739,2]
[315459077,1709049041098,-515.93923672,0.00022739,2]
[315459078,1709049041108,-275.40036878,0.0002379,2]
[315459079,1709049041117,-150.0,0.00023793,2]
[315459080,1709049041127,-687.6,0.00023796,2]
[315459081,1709049041136,-2345.32,0.00023797,2]
[315459082,1709049041146,-500.0,0.00023797,2]
[315459083,1709049041156,-582.2,0.00023797,2]
[315459084,1709049041165,-415.83,0.00023797,2]
[315459085,1709049041174,-520.00623151,0.00023798,2]
[315459086,1709049041186,-500.0,0.00023798,2]
[315459087,1709049041195,-500.0,0.00023798,2]
[315459088,1709049041205,-500.0,0.00023798,2]
[315459089,1709049041214,-500.0,0.00023798,2]
[315459090,1709049041224,-500.0,0.00023798,2]
[315459091,1709049041233,-500.0,0.00023798,2]
[315459092,1709049041243,-500.0,0.00023798,2]
[315459093,1709049041252,-500.0,0.00023798,2]
[315459094,1709049041261,-510.31120526,0.00023798,2]
[315459095,1709049041270,-516.58295628,0.00023798,2]
[315459097,1709049041280,-519.92497439,0.00023798,2]
[315459099,1709049041289,-500.0,0.00023798,2]
[315459100,1709049041298,-500.0,0.00023798,2]
[315459101,1709049041308,-500.0,0.00023798,2]
[315459102,1709049041317,-500.0,0.00023798,2]
[315459103,1709049041326,-500.0,0.00023798,2]
[315459104,1709049041335,-500.0,0.00023798,2]
[315459105,1709049041345,-527.17278032,0.00023798,2]
[315459106,1709049041354,-500.0,0.00023798,2]
[315459107,1709049041363,-500.0,0.00023798,2]
[315459108,1709049041373,-500.0,0.00023798,2]
[315459109,1709049041383,-500.0,0.00023798,2]
[315459110,1709049041391,-509.26178917,0.00023798,2]
[315459111,1709049041401,-500.0,0.00023798,2]
[315459112,1709049041410,-504.24330245,0.00023798,2]
[315459113,1709049041419,-500.0,0.00023798,2]
[315459114,1709049041429,-500.0,0.00023798,2]
[315459115,1709049041438,-500.0,0.00023798,2]
[315459116,1709049041447,-500.0,0.00023798,2]
[315459117,1709049041456,-500.0,0.00023798,2]
[315459118,1709049041466,-500.0,0.00023798,2]
[315459119,1709049041475,-500.0,0.00023798,2]
[315459120,1709049041485,-514.90574306,0.00023798,2]
[315459121,1709049041686,-500.0,0.00023798,2]
[315459122,1709049041695,-526.23041836,0.00023798,2]
[315459123,1709049041705,-500.0,0.00023798,2]
[315459124,1709049041714,-500.0,0.00023798,2]
[315459125,1709049041723,-500.0,0.00023798,2]
[315459126,1709049041735,-548.87248787,0.00023798,2]
[315459127,1709049041745,-498.11294267,0.00023798,2]
[315459128,1709049041755,-500.0,0.00023798,2]
[315459129,1709049041764,-517.23179579,0.00023798,2]
[315459130,1709049041777,-303.30320102,0.00023798,2]
[315459131,1709049041787,-500.0,0.00023798,2]
[315459132,1709049041796,-500.0,0.00023798,2]
[315459133,1709049041806,-529.34262857,0.00023798,2]
[315459134,1709049041815,-500.0,0.00023798,2]
[315459135,1709049041824,-500.0,0.00023798,2]
[315459136,1709049041833,-500.0,0.00023798,2]
[315459137,1709049041843,-500.0,0.00023798,2]
[315459138,1709049041854,-500.0,0.00023798,2]
[315459139,1709049041863,-500.0,0.00023798,2]
[315459140,1709049041873,-274.93239672,0.00023798,2]
[315459141,1709049041883,-500.0,0.00023798,2]
[315459142,1709049041892,-260.55225522,0.00023798,2]
[315459143,1709049041903,-260.55225518,0.00023798,2]
[315459144,1709049041913,-260.55225518,0.00023798,2]
[315459145,1709049041922,-260.55225518,0.00023798,2]
[315459146,1709049041935,-260.55225518,0.00023798,2]
[315459147,1709049041945,-260.55225518,0.00023798,2]
[315459148,1709049041955,-260.55225518,0.00023798,2]
[315459149,1709049041964,-260.55225518,0.00023798,2]
[315459150,1709049041973,-260.55225518,0.00023798,2]
[315459151,1709049041982,-1070.64223579,0.00023798,2]
[315459152,1709049041991,-1070.64223572,0.00023798,2]
[315459153,1709049042000,-1070.64223572,0.00023798,2]
[315459154,1709049042010,-1070.64223572,0.00023798,2]
[315459155,1709049042020,-1070.64223572,0.00023798,2]
[315459156,1709049042029,-1070.64223572,0.00023798,2]
[315459157,1709049042039,-1070.64223572,0.00023798,2]
[315459158,1709049042048,-1070.64223572,0.00023798,2]
[315459159,1709049042057,-1070.64223572,0.00023798,2]
[315459160,1709049042067,-500.0,0.00023799,2]
[315459161,1709049042076,-1500.0,0.00023802,2]
[315459162,1709049042086,-200.0,0.00023806,2]
[315459163,1709049042095,-800.0,0.00023806,2]
[315459164,1709049042104,-200.0,0.00023806,2]
[315459165,1709049042114,-500.0,0.00023806,2]
[315459166,1709049042123,-150.0,0.00023808,2]
[315459167,1709049042132,-855.76939072,0.00023808,2]
[315459168,1709049042142,-150.0,0.00023812,2]
[315459169,1709049042151,-150.0,0.00023819,2]
[315459170,1709049042161,-500.0,0.00023819,2]
[315459171,1709049042170,-150.0,0.00023819,2]
[315459172,1709049042182,-150.0,0.00023819,2]
[315459173,1709049042191,-855.76939072,0.00023827,2]
[315459174,1709049042201,-150.0,0.00023827,2]
[315459175,1709049042211,-150.0,0.00023827,2]
[315459176,1709049042222,-153.46131989,0.00023829,2]
[315459177,1709049042233,-150.0,0.00023833,2]
[315459178,1709049042244,-150.0,0.00023836,2]
[315459179,1709049042254,-150.0,0.00023837,2]
[315459181,1709049042265,-150.0,0.00023841,2]
[315459183,1709049042275,-150.0,0.00023843,2]
[315459184,1709049042285,-855.76939072,0.00023845,2]
[315459185,1709049042295,-150.0,0.00023857,2]
[315459187,1709049042304,-150.0,0.00023858,2]
[315459188,1709049042314,-150.0,0.0002386,2]
[315459189,1709049042324,-855.76939072,0.00023863,2]
[315459190,1709049042333,-150.0,0.00023864,2]
[315459191,1709049042343,-150.0,0.0002387,2]
[315459192,1709049042352,-150.0,0.00023876,2]
[315459193,1709049042362,-150.0,0.00023878,2]
[315459195,1709049042371,-855.76939072,0.00023882,2]
[315459196,1709049042381,-150.0,0.00023883,2]
[315459197,1709049042390,-150.0,0.00023895,2]
[315459198,1709049042399,-500.0,0.00023899,2]
[315459199,1709049042408,-500.0,0.00023899,2]
[315459200,1709049042418,-2345.32,0.00023899,2]
[315459201,1709049042427,-500.0,0.00023899,2]
[315459202,1709049042439,-500.0,0.00023899,2]
[315459203,1709049042448,-582.2,0.00023899,2]
[315459204,1709049042458,-582.2,0.00023899,2]
[315459205,1709049042467,-500.0,0.00023899,2]
[315459206,1709049042476,-500.0,0.00023899,2]
[315459207,1709049042486,-500.0,0.00023899,2]
[315459208,1709049042494,-500.0,0.00023899,2]
[315459209,1709049042504,-1000.0,0.000239,2]
[315459210,1709049042513,-500.0,0.000239,2]
[315459211,1709049042522,-500.0,0.000239,2]
[315459213,1709049042531,-10595.06,0.000239,2]
[315459215,1709049042541,-10595.06,0.000239,2]
[315459216,1709049042550,-10595.06,0.000239,2]
[315459217,1709049042559,-10595.06,0.000239,2]
[315459218,1709049042580,-10595.06,0.000239,2]
[315459219,1709049042591,-10595.06,0.000239,2]
[315459220,1709049042601,-10595.06,0.000239,2]
[315459221,1709049042611,-10595.06,0.000239,2]
[315459222,1709049042620,-10595.06,0.000239,2]
[315459223,1709049042630,-10595.06,0.000239,2]
[315459224,1709049042640,-10595.06,0.000239,2]
[315459225,1709049042649,-10595.06,0.000239,2]
[315459226,1709049042659,-10595.06,0.000239,2]
[315459227,1709049042670,-10595.06,0.000239,2]
[315459228,1709049042682,-10595.06,0.000239,2]
[315459229,1709049042692,-10595.06,0.000239,2]
[315459230,1709049042701,-10595.06,0.000239,2]
[315459231,1709049042711,-230.5,0.000239,2]
[315459232,1709049042722,-10595.06,0.000239,2]
[315459233,1709049042731,-230.5,0.000239,2]
[315459234,1709049042741,-10595.06,0.000239,2]
[315459235,1709049042751,-230.5,0.000239,2]
[315459236,1709049042761,-10595.06,0.000239,2]
[315459237,1709049042773,-230.5,0.000239,2]
[315459238,1709049042783,-230.5,0.000239,2]
[315459239,1709049042792,-230.5,0.000239,2]
[315459240,1709049042802,-230.5,0.000239,2]
[315459241,1709049042812,-230.5,0.000239,2]
[315459242,1709049042824,-230.5,0.000239,2]